bitfinex/quotes_SOLUSD_20250704
["timestamp","ask_amount","ask_price","bid_price","bid_amount"]
[1751647520259,0.2,145.69,145.68,14.50142434]
[1751647521517,0.2,145.69,145.68,6.86436024]
[1751647522009,0.2,145.69,145.61,6.0525]
[1751647522233,7.6370641,145.67,145.61,24.03681065]
[1751647522450,0.2,145.69,145.66,7.6370641]
[1751647522756,0.2,145.69,145.68,7.6370641]
[1751647523249,0.2,145.69,145.68,7.6370641]
[1751647524117,0.2,145.69,145.68,14.50142434]
[1751647524918,0.2,145.69,145.68,15.18786036]
[1751647525140,1e-08,145.7,145.68,15.18786036]
[1751647525328,1e-08,145.7,145.69,7.6370641]
[1751647525548,0.2,145.72,145.7,18.64964886]
[1751647525755,0.2,145.75,145.73,26.0]
[1751647525918,0.2,145.75,145.74,15.2741282]
[1751647526119,0.2,145.75,145.74,14.49859833]
[1751647528922,0.2,145.75,145.74,22.13566243]
[1751647529519,0.2,145.75,145.74,14.49859833]
[1751647529946,0.2,145.75,145.69,17.15871277]
[1751647530243,0.2,145.75,145.73,7.6370641]
[1751647531064,0.2,145.75,145.73,14.49891957]
[1751647531233,0.2,145.75,145.74,7.6370641]
[1751647531849,14.19702321,145.78,145.74,7.6370641]
[1751647532926,18.64964886,145.78,145.75,7.6370641]
[1751647533252,96.65938518,145.79,145.75,7.6370641]
[1751647533253,104.29644928,145.79,145.75,7.6370641]
[1751647533751,122.65938518,145.79,145.76,7.6370641]
[1751647534355,130.29644928,145.79,145.75,7.6370641]
[1751647535956,122.65938518,145.79,145.75,7.6370641]
[1751647536264,130.29644928,145.79,145.75,7.6370641]
[1751647538453,26.0,145.79,145.76,7.6370641]
[1751647539275,26.0,145.79,145.77,7.6370641]
[1751647539558,89.8,145.8,145.74,7.6370641]
[1751647539932,89.8,145.8,145.78,7.6370641]
[1751647540253,89.8,145.8,145.77,7.6370641]
[1751647540746,7.6370641,145.79,145.74,6.86141276]
[1751647541053,7.6370641,145.78,145.74,14.49847686]
[1751647541555,9.2489641,145.79,145.75,7.6370641]
[1751647541930,89.8,145.8,145.76,7.6370641]
[1751647542361,89.8,145.8,145.77,7.6370641]
[1751647542539,114.70424886,145.82,145.76,6.86027185]
[1751647542741,114.70424886,145.82,145.71,14.50001104]
[1751647542742,9.2489641,145.77,145.71,14.50001104]
[1751647543050,9.2489641,145.77,145.73,7.6370641]
[1751647543363,1.6119,145.77,145.74,7.6370641]
[1751647543728,1.6119,145.77,145.71,24.02031431]
[1751647543729,7.6370641,145.76,145.72,7.6370641]
[1751647544701,14.49779743,145.76,145.72,7.6370641]
[1751647545031,14.49779743,145.76,145.72,14.49948245]
[1751647545457,7.6370641,145.75,145.7,7.6370641]
[1751647545658,7.6370641,145.71,145.68,0.1]
[1751647546238,7.6370641,145.74,145.68,0.1]
[1751647546239,7.6370641,145.7,145.68,0.1]
[1751647546839,7.6370641,145.71,145.68,0.1]
[1751647547038,14.49983477,145.72,145.68,7.7370641]
[1751647547550,6.86277067,145.72,145.68,7.7370641]
[1751647547756,19.9379014,145.72,145.68,13.17513073]
[1751647548078,19.9379014,145.72,145.68,20.03944253]
[1751647548483,19.9379014,145.72,145.68,13.17513073]
[1751647548687,19.9379014,145.72,145.68,0.1]
[1751647549072,19.9379014,145.72,145.68,6.96431423]
[1751647549394,26.0,145.71,145.68,20.03944496]
[1751647550974,26.0,145.71,145.68,0.1]
[1751647551283,13.07513073,145.7,145.68,0.1]
[1751647551464,13.07513073,145.69,145.68,0.1]
[1751647552084,13.07513073,145.7,145.68,0.1]
[1751647554289,32.86304443,145.71,145.68,0.1]
[1751647554593,13.07513073,145.7,145.68,0.1]
[1751647556882,39.07513073,145.71,145.68,0.1]
[1751647557080,26.0,145.71,145.68,0.1]
[1751647557269,39.07513073,145.71,145.68,0.1]
[1751647557584,45.93817172,145.71,145.68,0.1]
[1751647558089,39.07513073,145.71,145.68,0.1]
[1751647558667,31.72477959,145.69,145.68,0.1]
[1751647558871,6.5418,145.7,145.68,0.1]
[1751647560096,13.40527645,145.7,145.68,0.1]
[1751647560295,26.48040718,145.7,145.68,0.1]
[1751647560592,13.07513073,145.69,145.68,0.1]
[1751647560782,18.64964886,145.69,145.68,0.1]
[1751647560981,13.07513073,145.69,145.68,0.1]
[1751647561684,96.3418,145.7,145.68,0.1]
[1751647561889,7.52,145.71,145.68,0.1]
[1751647562198,7.52,145.71,145.68,13.17513073]
[1751647562379,7.52,145.71,145.68,20.03941262]
[1751647562895,7.52,145.71,145.68,13.17513073]
[1751647563090,7.52,145.71,145.68,0.1]
[1751647563280,27.45814064,145.71,145.68,0.1]
[1751647563595,13.07513073,145.7,145.68,0.1]
[1751647563895,20.59513073,145.71,145.68,0.1]
[1751647566601,7.52,145.71,145.69,13.07513073]
[1751647567100,7.52,145.71,145.68,20.03934211]
[1751647567401,20.59513073,145.71,145.68,0.1]
[1751647567603,7.52,145.71,145.68,20.03939064]
[1751647567772,7.52,145.71,145.69,13.07513073]
[1751647568701,7.52,145.71,145.69,19.93884202]
[1751647569284,19.53823073,145.74,145.69,19.93884202]
[1751647569507,102.87513073,145.75,145.71,13.07513073]
[1751647570003,97.42324313,145.75,145.71,7.62324313]
[1751647570696,89.8,145.75,145.71,14.48580962]
[1751647571773,96.66107851,145.75,145.7,14.48661735]
[1751647572100,7.62324313,145.74,145.7,7.62324313]
[1751647573075,7.62324313,145.74,145.7,14.4865479]
[1751647574091,96.66119291,145.75,145.7,6.86330477]
[1751647574310,96.66119291,145.75,145.7,14.4865479]
[1751647574492,7.62324313,145.74,145.7,14.4865479]
[1751647575393,14.48477799,145.74,145.7,14.4865479]
[1751647575791,7.62324313,145.74,145.7,14.4865479]
[1751647576584,97.42324313,145.75,145.71,7.62324313]
[1751647577389,7.62324313,145.76,145.72,6.86247598]
[1751647577703,7.62324313,145.75,145.7,7.62324313]
[1751647578123,7.62324313,145.75,145.7,14.48666111]
[1751647578419,7.62324313,145.75,145.71,7.62324313]
[1751647578592,7.62324313,145.76,145.72,7.62324313]
[1751647579614,7.62324313,145.76,145.71,7.62324313]
[1751647579791,14.48393037,145.76,145.71,7.62324313]
[1751647579991,6.86068724,145.76,145.71,7.62324313]
[1751647580198,7.62324313,145.75,145.71,7.62324313]
[1751647580395,14.48393037,145.76,145.71,7.62324313]
[1751647581013,7.62324313,145.76,145.71,7.62324313]
[1751647581520,7.62324313,145.76,145.72,7.62324313]
[1751647582013,7.62324313,145.76,145.73,6.86200507]
[1751647582710,7.62324313,145.76,145.72,7.62324313]
[1751647582925,7.62324313,145.75,145.72,6.86229063]
[1751647583220,122.66035143,145.77,145.72,14.48553376]
[1751647583516,89.8,145.77,145.74,7.62324313]
[1751647583707,89.8,145.77,145.75,7.62324313]
[1751647583913,7.52,145.78,145.75,7.62324313]
[1751647583914,7.52,145.78,145.76,6.86059275]
[1751647584111,7.52,145.78,145.76,14.48383588]
[1751647584288,7.62324313,145.81,145.77,7.62324313]
[1751647584488,12.66376282,145.81,145.77,7.62324313]
[1751647584710,11.89835213,145.82,145.77,7.62324313]
[1751647585183,7.62324313,145.81,145.76,6.86059275]
[1751647585386,7.62324313,145.8,145.76,14.48383588]
[1751647585787,7.62324313,145.8,145.76,6.86059275]
[1751647585991,7.62324313,145.8,145.76,14.48383588]
[1751647587798,7.62324313,145.8,145.76,7.62324313]
[1751647587997,7.62324313,145.8,145.75,6.86106346]
[1751647588305,7.62324313,145.79,145.75,14.48430659]
[1751647588513,6.85824726,145.81,145.75,14.48430659]
[1751647588715,7.62324313,145.79,145.75,14.48430659]
[1751647589013,6.85824726,145.81,145.75,6.86106346]
[1751647589206,7.62324313,145.8,145.76,14.48344623]
[1751647589595,6.85776985,145.82,145.75,14.48405318]
[1751647589807,11.89850043,145.82,145.75,14.48405318]
[1751647590009,7.62324313,145.8,145.76,7.62324313]
[1751647590403,7.62324313,145.81,145.77,7.62324313]
[1751647591392,122.6573347,145.83,145.79,7.62324313]
[1751647591592,7.62324313,145.81,145.77,7.62324313]
[1751647591812,7.62324313,145.82,145.78,7.62324313]
[1751647592023,89.8,145.83,145.79,7.62324313]
[1751647592517,7.7,145.84,145.82,7.62324313]
[1751647592899,0.2,145.84,145.82,7.62324313]
[1751647593421,0.2,145.84,145.82,14.4807659]
[1751647593900,0.2,145.84,145.82,7.62324313]
[1751647594095,0.2,145.84,145.81,14.48130441]
[1751647594613,0.2,145.84,145.82,7.62324313]
[1751647594804,7.62324313,145.83,145.79,9.26674313]
[1751647595217,7.82324313,145.84,145.8,7.62324313]
[1751647595421,14.68009684,145.84,145.8,7.62324313]
[1751647596010,7.05685371,145.84,145.8,7.62324313]
[1751647596320,7.82324313,145.84,145.8,7.62324313]
[1751647596924,7.82324313,145.84,145.79,8.50261881]
[1751647596925,14.68012627,145.84,145.79,8.50261881]
[1751647597094,7.62324313,145.81,145.76,6.86059275]
[1751647597294,7.62324313,145.81,145.77,7.62324313]
[1751647597514,7.62324313,145.82,145.78,7.62324313]
[1751647598307,18.64964886,145.83,145.78,7.62324313]
[1751647598519,0.2,145.84,145.79,7.62324313]
[1751647598710,7.82324313,145.84,145.79,7.62324313]
[1751647599923,0.2,145.84,145.79,14.48198296]
[1751647600134,7.82324313,145.84,145.79,14.48198296]
[1751647600323,7.82324313,145.84,145.8,7.62324313]
[1751647600829,7.82324313,145.84,145.79,14.48198296]
[1751647602407,7.05687656,145.84,145.79,14.48198296]
[1751647602609,7.62324313,145.83,145.79,14.48198296]
[1751647603030,7.05687656,145.84,145.77,6.86012211]
[1751647603223,7.05687656,145.84,145.77,14.48336524]
[1751647603224,7.62324313,145.81,145.77,14.48336524]
[1751647604212,7.62324313,145.8,145.77,6.86012211]
[1751647604827,6.85795034,145.82,145.77,6.86012211]
[1751647605032,0.2,145.84,145.77,14.48336524]
[1751647605033,6.8573947,145.83,145.77,14.48336524]
[1751647605331,7.62324313,145.81,145.77,6.86012211]
[1751647605512,7.62324313,145.78,145.73,7.62324313]
[1751647606235,7.62324313,145.78,145.74,7.62324313]
[1751647608043,24.83274886,145.81,145.74,7.62324313]
[1751647608217,7.62324313,145.78,145.74,7.62324313]
[1751647608632,7.62324313,145.78,145.74,14.48444044]
[1751647609045,6.85887315,145.8,145.74,14.48444044]
[1751647609214,7.62324313,145.78,145.74,14.48444044]
[1751647609622,6.85887315,145.8,145.74,14.48444044]
[1751647609823,7.62324313,145.78,145.74,14.48444044]
[1751647610139,7.62324313,145.78,145.74,6.86119731]
[1751647610435,7.62324313,145.75,145.7,6.86341798]
[1751647610634,7.62324313,145.74,145.7,14.48666111]
[1751647610819,7.62324313,145.74,145.7,6.86341798]
[1751647611815,7.62324313,145.71,145.68,6.9641605]
[1751647612043,18.64964886,145.73,145.68,0.1]
[1751647612213,7.62324313,145.7,145.68,0.1]
[1751647612539,7.62324313,145.69,145.68,0.1]
[1751647613037,1.5158,145.71,145.68,0.1]
[1751647613240,7.62324313,145.69,145.68,0.1]
[1751647614949,7.62324313,145.7,145.68,0.1]
[1751647615463,7.62324313,145.71,145.68,0.1]
[1751647615624,7.62324313,145.69,145.68,0.1]
[1751647616751,6.86345398,145.7,145.68,0.1]
[1751647616917,7.62324313,145.69,145.68,0.1]
[1751647617123,26.27289199,145.69,145.68,0.1]
[1751647617323,60.22909199,145.69,145.68,0.1]
[1751647618635,67.09298106,145.69,145.68,0.1]
[1751647619939,48.59298106,145.69,145.68,0.1]
[1751647620527,56.21622419,145.69,145.68,1e-08]
[1751647620826,56.21622419,145.69,145.64,0.1]
[1751647620827,18.64964886,145.68,145.64,0.1]
[1751647621026,26.27289199,145.65,145.64,0.1]
[1751647621928,7.62324313,145.65,145.64,0.1]
[1751647622157,7.62324313,145.67,145.64,0.1]
[1751647622449,20.64,145.73,145.66,7.62324313]
[1751647622450,15.34374313,145.73,145.66,7.62324313]
[1751647622627,15.34374313,145.73,145.69,14.48687588]
[1751647622954,6.1765,145.73,145.7,7.62324313]
[1751647623431,18.64964886,145.73,145.7,7.62324313]
[1751647623635,26.0,145.74,145.7,7.62324313]
[1751647623836,6.2319,145.76,145.73,13.06821619]
[1751647624027,7.5,145.78,145.74,13.06821619]
[1751647624028,20.56821619,145.78,145.74,13.06821619]
[1751647624855,20.56821619,145.78,145.74,19.92939447]
[1751647625229,46.56821619,145.78,145.74,19.92939447]
[1751647625431,7.5,145.78,145.74,19.92939447]
[1751647625653,7.5,145.78,145.75,13.06821619]
[1751647625841,20.56821619,145.78,145.74,19.92939447]
[1751647626634,7.5,145.78,145.74,19.92939447]
[1751647626940,7.5,145.78,145.74,13.06821619]
[1751647627152,13.06821619,145.77,145.73,13.06821619]
[1751647627961,7.5,145.78,145.73,13.06821619]
[1751647628343,13.06821619,145.77,145.73,13.06821619]
[1751647628842,7.5,145.78,145.73,13.06821619]
[1751647629042,13.06821619,145.77,145.73,19.92988764]
[1751647630959,13.06821619,145.77,145.73,6.86167145]
[1751647631139,13.06821619,145.77,145.73,19.92988764]
[1751647631341,20.56821619,145.78,145.73,19.92988764]
[1751647631646,7.5,145.78,145.75,13.06821619]
[1751647632033,0.2,145.79,145.75,13.06821619]
[1751647633146,0.2,145.79,145.76,19.92880894]
[1751647634783,0.2,145.79,145.77,13.06821619]
[1751647634946,0.2,145.79,145.78,13.06821619]
[1751647635770,0.2,145.79,145.76,24.01207463]
[1751647636068,0.2,145.79,145.78,13.06821619]
[1751647636868,0.2,145.79,145.78,19.92786771]
[1751647637164,0.2,145.79,145.78,6.85965152]
[1751647637461,0.2,145.79,145.78,19.92786771]
[1751647637641,0.2,145.79,145.78,6.85965152]
[1751647638036,0.2,145.79,145.77,6.85991799]
[1751647638354,0.2,145.79,145.77,19.92813418]
[1751647638552,0.2,145.79,145.75,6.86106346]
[1751647638754,0.2,145.79,145.75,19.92927965]
[1751647638946,0.2,145.79,145.76,13.06821619]
[1751647640670,0.2,145.79,145.75,19.92927965]
[1751647640852,0.2,145.79,145.75,6.86106346]
[1751647641054,0.2,145.79,145.76,13.06821619]
[1751647642336,0.2,145.79,145.74,17.15377448]
[1751647642550,0.2,145.79,145.78,13.06821619]
[1751647643237,7.7,145.84,145.78,21.57306771]
[1751647643541,7.7,145.84,145.82,13.06821619]
[1751647643853,0.2,145.84,145.81,13.06821619]
[1751647644056,0.2,145.84,145.78,25.65398034]
[1751647644366,0.2,145.84,145.81,13.06821619]
[1751647644948,0.2,145.84,145.78,25.65398034]
[1751647645267,13.26821619,145.84,145.8,19.92669614]
[1751647645768,7.81403613,145.84,145.8,14.47251608]
[1751647646203,0.2,145.84,145.79,14.47302652]
[1751647648015,0.2,145.84,145.8,7.61403613]
[1751647649015,0.2,145.84,145.79,14.47302652]
[1751647649311,7.05683146,145.84,145.79,14.47302652]
[1751647649514,7.61403613,145.83,145.79,14.47302652]
[1751647650607,7.81403613,145.84,145.79,14.47302652]
[1751647651110,0.2,145.84,145.79,14.47302652]
[1751647651320,7.81403613,145.84,145.79,14.47302652]
[1751647652017,7.61403613,145.83,145.79,14.47302652]
[1751647652827,7.61403613,145.8,145.74,6.86153423]
[1751647653127,20.20104886,145.83,145.77,7.61403613]
[1751647653288,7.61403613,145.82,145.78,7.61403613]
[1751647653491,1.5514,145.83,145.79,14.47321714]
[1751647653698,97.61403613,145.84,145.79,14.47321714]
[1751647653896,97.61403613,145.84,145.79,6.85918101]
[1751647654090,104.47094304,145.84,145.79,14.47321714]
[1751647654528,7.61403613,145.83,145.79,14.47321714]
[1751647654731,7.61403613,145.82,145.78,14.47349684]
[1751647654909,7.61403613,145.81,145.77,14.47392781]
[1751647655526,104.47094304,145.84,145.79,7.61403613]
[1751647655728,90.0,145.84,145.8,7.61403613]
[1751647655927,0.2,145.84,145.8,7.61403613]
[1751647656093,0.2,145.84,145.77,24.01019695]
[1751647656289,0.2,145.84,145.81,7.61403613]
[1751647656602,0.2,145.84,145.82,7.61403613]
[1751647657399,0.2,145.84,145.82,14.47171951]
[1751647657926,0.2,145.84,145.82,6.85768338]
[1751647659797,0.2,145.84,145.81,14.47206616]
[1751647660003,0.2,145.84,145.81,6.85803003]
[1751647661796,7.81403613,145.84,145.78,24.00775458]
[1751647662102,0.2,145.84,145.79,7.61403613]
[1751647662328,7.81403613,145.84,145.8,7.61403613]
[1751647663316,0.2,145.84,145.8,7.61403613]
[1751647663625,0.2,145.84,145.78,24.00878034]
[1751647663626,0.2,145.84,145.81,7.61403613]
[1751647663927,0.2,145.84,145.82,6.85776985]
[1751647665297,0.2,145.84,145.81,6.85824017]
[1751647665812,0.2,145.84,145.81,14.4722763]
[1751647669330,5.25494829,145.84,145.81,14.4722763]
[1751647670427,5.25494829,145.84,145.81,6.85824017]
[1751647671300,0.2,145.84,145.81,6.85824017]
[1751647671702,5.25579658,145.84,145.81,6.85824017]
[1751647671895,0.2,145.84,145.81,6.85824017]
[1751647672125,12.87120141,145.84,145.77,24.01025149]
[1751647672363,5.25716528,145.84,145.79,7.61403613]
[1751647672510,12.87120141,145.84,145.79,7.61403613]
[1751647673226,5.25716528,145.84,145.8,7.61403613]
[1751647673395,5.25716528,145.84,145.77,24.01025149]
[1751647673800,5.25716528,145.84,145.8,7.61403613]
[1751647674002,5.25716528,145.84,145.82,7.61403613]
[1751647674602,5.25716528,145.84,145.81,7.61403613]
[1751647675817,5.25716528,145.84,145.82,6.85776985]
[1751647676217,5.25716528,145.84,145.82,14.47180598]
[1751647677121,0.2,145.84,145.82,14.47180598]
[1751647677928,0.2,145.84,145.83,7.61403613]
[1751647680611,0.2,145.84,145.83,14.47133572]
[1751647682238,1e-08,145.85,145.83,33.80671453]
[1751647682432,1e-08,145.85,145.84,9.26103613]
[1751647682635,1e-08,145.85,145.84,16.11786553]
[1751647682933,0.2,145.88,145.84,33.25993903]
[1751647683237,0.2,145.88,145.87,7.61403613]
[1751647685241,0.2,145.88,145.87,14.46945533]
[1751647687955,0.2,145.88,145.87,7.61403613]
[1751647688140,0.2,145.88,145.86,6.8558892]
[1751647688727,0.2,145.88,145.83,7.61403613]
[1751647688728,6.2549,145.88,145.83,7.61403613]
[1751647688925,7.61403613,145.87,145.83,7.61403613]
[1751647689331,7.61403613,145.86,145.82,6.85776985]
[1751647689535,5.05608186,145.87,145.82,14.47180598]
[1751647689757,7.61403613,145.87,145.82,14.47180598]
[1751647690051,7.61403613,145.87,145.82,6.85776985]
[1751647690253,7.61403613,145.87,145.82,14.47180598]
[1751647691636,7.61403613,145.87,145.82,6.85776985]
[1751647692147,0.2,145.88,145.86,7.61403613]
[1751647692328,0.2,145.88,145.87,7.61403613]
[1751647692524,1e-08,145.88,145.87,7.61403613]
[1751647692731,1e-08,145.88,145.87,26.0]
[1751647692929,1e-08,145.88,145.87,33.61403613]
[1751647693124,1e-08,145.88,145.87,66.73314032]
[1751647693325,0.2,145.94,145.92,7.61403613]
[1751647693548,0.2,145.94,145.91,7.61403613]
[1751647694936,0.2,145.94,145.9,7.61403613]
[1751647695228,0.2,145.94,145.91,6.85353985]
[1751647695433,0.2,145.94,145.91,14.46757598]
[1751647696058,0.2,145.94,145.92,7.61403613]
[1751647696559,0.2,145.94,145.91,6.85353985]
[1751647696736,0.2,145.94,145.92,7.61403613]
[1751647697349,0.2,145.94,145.92,14.4671063]
[1751647698433,7.81403613,145.94,145.92,6.85307017]
[1751647698755,7.81403613,145.93,145.9,6.85400959]
[1751647698950,0.2,145.93,145.92,7.61403613]
[1751647699549,0.2,145.93,145.92,14.4671063]
[1751647702160,0.2,145.94,145.92,16.0417063]
[1751647702382,0.1,145.99,145.93,7.61403613]
[1751647702531,0.1,145.99,145.98,7.61403613]
[1751647702958,0.1,145.99,145.95,26.0]
[1751647703156,0.1,145.99,145.98,7.61403613]
[1751647703539,0.1,145.99,145.98,14.46428958]
[1751647703745,0.1,145.99,145.98,6.85025345]
[1751647703940,0.1,145.99,145.96,6.8511921]
[1751647704156,0.1,145.99,145.98,7.61403613]
[1751647704547,0.1,145.99,145.96,23.97917236]
[1751647704750,0.1,145.99,145.97,7.61403613]
[1751647705841,7.61403613,145.98,145.94,14.46616714]
[1751647706560,0.1,145.99,145.94,6.85213101]
[1751647706561,7.61403613,145.97,145.94,6.85213101]
[1751647706733,6.4837,145.97,145.94,6.85213101]
[1751647706933,6.4837,145.97,145.94,14.46616714]
[1751647707134,6.4837,145.97,145.95,7.61403613]
[1751647707331,0.1,145.99,145.96,7.61403613]
[1751647708859,7.61403613,145.97,145.92,17.13236091]
[1751647709072,7.61403613,145.97,145.93,7.61403613]
[1751647709249,7.61403613,145.97,145.93,14.46663669]
[1751647709451,7.61403613,145.98,145.93,14.46663669]
[1751647709652,0.1,145.99,145.94,7.61403613]
[1751647709653,7.71403613,145.99,145.94,7.61403613]
[1751647710752,7.61403613,145.98,145.94,7.61403613]
[1751647711141,7.61403613,145.98,145.94,14.46573381]
[1751647711942,7.61403613,145.98,145.94,6.85169768]
[1751647712144,7.61403613,145.98,145.94,14.46573381]
[1751647712360,7.71403613,145.99,145.95,7.61403613]
[1751647713266,7.71403613,145.99,145.96,6.8511921]
[1751647714167,7.61403613,145.98,145.94,7.61403613]
[1751647714346,7.61403613,145.97,145.93,14.46663669]
[1751647714872,7.61403613,145.98,145.94,7.61403613]
[1751647715641,7.61403613,145.98,145.94,14.46595222]
[1751647716366,0.1,145.99,145.95,7.61403613]
[1751647716850,7.71403613,145.99,145.95,7.61403613]
[1751647717751,7.71403613,145.99,145.96,6.8511921]
[1751647719180,0.1,145.99,145.96,6.8511921]
[1751647719481,7.71403613,145.99,145.96,6.8511921]
[1751647720046,0.1,145.99,145.96,14.46522823]
[1751647720357,0.1,145.99,145.97,7.61403613]
[1751647720769,0.1,145.99,145.98,7.61403613]
[1751647722178,0.1,145.99,145.98,14.46428958]
[1751647722546,0.1,145.99,145.98,6.85025345]
[1751647722747,0.1,145.99,145.98,14.46428958]
[1751647723162,0.1,145.99,145.98,6.85025345]
[1751647723376,0.1,145.99,145.98,14.46428958]
[1751647726870,0.1,145.99,145.98,6.85025345]
[1751647727060,0.1,145.99,145.98,14.46428958]
[1751647727659,0.1,145.99,145.95,6.85166152]
[1751647727858,0.1,145.99,145.96,7.61403613]
[1751647728158,0.1,145.99,145.98,7.61403613]
[1751647728357,0.1,145.99,145.98,14.46428958]
[1751647729063,0.1,145.99,145.98,6.85025345]
[1751647729598,0.1,145.99,145.98,14.46428958]
[1751647729958,0.1,145.99,145.98,6.85025345]
[1751647730158,0.1,145.99,145.98,14.46428958]
[1751647732362,0.1,145.99,145.98,6.85025345]
[1751647732871,0.1,145.99,145.98,14.46428958]
[1751647734085,0.1,145.99,145.98,6.85025345]
[1751647734877,0.1,145.99,145.95,17.12915381]
[1751647734878,0.1,145.99,145.96,7.61403613]
[1751647735181,0.1,145.99,145.95,17.12915381]
[1751647735771,0.1,145.99,145.96,7.61403613]
[1751647736170,0.1,145.99,145.98,7.61403613]
[1751647737169,0.1,145.99,145.98,14.46428958]
[1751647742902,0.1,145.99,145.98,6.85025345]
[1751647743193,0.1,145.99,145.98,14.46428958]
[1751647745405,0.1,145.99,145.98,6.85025345]
[1751647745814,0.1,145.99,145.98,14.46428958]
[1751647746322,0.1,145.99,145.98,6.85025345]
[1751647746689,0.1,145.99,145.98,14.46428958]
[1751647749607,1e-08,145.99,145.98,14.46428958]
[1751647750489,1e-08,145.99,145.98,40.46428958]
[1751647750899,1e-08,145.99,145.98,32.85025345]
[1751647751090,1e-08,145.99,145.98,40.46428958]
[1751647751912,0.2,146.05,145.98,112.03533937]
[1751647752102,0.2,146.05,146.04,7.61403613]
[1751647752613,0.2,146.05,146.03,7.61403613]
[1751647752797,0.2,146.05,146.02,7.61403613]
[1751647754016,0.2,146.05,146.03,6.84790796]
[1751647755222,7.81403613,146.05,146.03,6.84790796]
[1751647755818,13.83723613,146.04,146.0,14.46335119]
[1751647756195,6.2232,146.04,146.02,7.61403613]
[1751647756803,6.2232,146.04,146.01,7.61403613]
[1751647758418,6.2232,146.04,146.02,6.84837693]
[1751647760701,6.2232,146.04,146.01,14.46270563]
[1751647760905,7.61403613,146.03,146.01,6.8486695]
[1751647761108,6.2232,146.04,146.01,6.8486695]
[1751647761109,13.83723613,146.04,146.01,6.8486695]
[1751647761304,6.2232,146.04,146.01,14.46270563]
[1751647761521,6.2232,146.04,146.02,7.61403613]
[1751647762215,6.2232,146.04,146.01,14.46270563]
[1751647762710,6.2232,146.04,146.02,7.61403613]
[1751647762901,0.2,146.05,146.03,7.61403613]
[1751647763112,0.2,146.05,146.01,23.97078442]
[1751647763113,0.2,146.05,146.04,7.61403613]
[1751647764241,1e-08,146.05,146.04,7.61403613]
[1751647764739,1e-08,146.05,146.04,14.46147518]
[1751647765623,1e-08,146.05,146.04,6.84743905]
[1751647766128,1e-08,146.05,146.04,14.46147518]
[1751647767610,1e-08,146.05,146.04,40.46147518]
[1751647769129,1e-08,146.05,146.04,32.84743905]
[1751647769330,1e-08,146.05,146.04,40.46147518]
[1751647770134,1e-08,146.05,146.04,14.46147518]
[1751647770937,1e-08,146.05,146.04,6.84743905]
[1751647772016,1e-08,146.05,146.03,7.61403613]
[1751647772218,1e-08,146.05,146.03,6.84773096]
[1751647772732,1e-08,146.05,146.0,7.61403613]
[1751647772733,7.61403613,146.04,146.0,7.61403613]
[1751647773046,7.61403613,146.02,145.98,7.61403613]
[1751647773231,13.81373613,146.03,145.99,7.61403613]
[1751647773550,13.81373613,146.03,145.98,7.61403613]
[1751647773551,7.61403613,146.02,145.98,7.61403613]
[1751647774756,6.1997,146.03,145.98,7.61403613]
[1751647775059,7.61403613,146.02,145.98,7.61403613]
[1751647775553,7.61403613,146.02,145.99,6.84978423]
[1751647779362,7.61403613,146.01,145.97,6.85072275]
[1751647779568,7.61403613,146.0,145.97,6.85072275]
[1751647779857,7.61403613,146.01,145.97,7.61403613]
[1751647780242,7.61403613,146.01,145.96,14.46522823]
[1751647780660,7.61403613,146.01,145.97,7.61403613]
[1751647780968,7.61403613,146.0,145.96,14.46522823]
[1751647781157,7.61403613,146.01,145.97,7.61403613]
[1751647781669,102.84780094,146.03,145.97,7.61403613]
[1751647781869,7.61403613,146.01,145.97,7.61403613]
[1751647782670,7.61403613,146.01,145.98,6.85025345]
[1751647783369,102.84780094,146.03,145.98,6.85025345]
[1751647783544,7.61403613,146.01,145.98,6.85025345]
[1751647786743,7.61403613,146.01,145.96,6.8511921]
[1751647787064,7.61403613,146.01,145.97,7.61403613]
[1751647788965,7.61403613,146.01,145.96,6.8511921]
[1751647789172,7.61403613,145.98,145.95,6.85148607]
[1751647789345,7.61403613,145.97,145.93,0.2]
[1751647789545,7.61403613,145.97,145.94,6.85205515]
[1751647792267,8.43692544,145.99,145.94,6.85205515]
[1751647792494,7.61403613,146.01,145.94,6.85205515]
[1751647792669,7.61403613,145.99,145.94,6.85205515]